lending/lending_fUSD_20260209
["ID","MTS","AMOUNT","RATE_DAILY","PERIOD"]
[404828864,1770603044255,-151.0,0.00044383,2]
[404828865,1770603044264,-151.0,0.00044383,2]
[404828866,1770603044274,-151.0,0.00044383,2]
[404828867,1770603044285,-151.0,0.00044383,2]
[404828868,1770603044295,-151.0,0.00044383,2]
[404828869,1770603044306,-151.0,0.00044383,2]
[404828870,1770603044316,-151.0,0.00044383,2]
[404828871,1770603044326,-151.0,0.00044383,2]
[404828872,1770603044337,-151.0,0.00044383,2]
[404828873,1770603044350,-151.0,0.00044383,2]
[404828874,1770603044361,-151.0,0.00044383,2]
[404828875,1770603044370,-151.0,0.00044383,2]
[404828876,1770603044380,-153.61534117,0.00044383,2]
[404828877,1770603044390,-20134.0,0.00044384,120]
[404828878,1770603044400,-200.0,0.0004439,120]
[404828879,1770603044410,-150.0,0.000444,35]
[404828880,1770603044419,-274.501304,0.000444,46]
[404828881,1770603044428,-3009.0,0.000444,7]
[404828882,1770603044438,-202.928347,0.000444,26]
[404828883,1770603044450,-1000.0,0.00044402,30]
[404828884,1770603044460,-500.0,0.00044405,30]
[404828885,1770603044471,-457.7386775,0.00044406,30]
[404828886,1770603044482,-160.41964365,0.00044408,7]
[404828887,1770603044492,-500.0,0.00044408,120]
[404828888,1770603044501,-500.0,0.00044408,120]
[404828889,1770603044512,-500.0,0.00044408,120]
[404828890,1770603044523,-500.0,0.00044408,10]
[404828891,1770603044534,-507.6456561,0.00044408,10]
[404828892,1770603044544,-834.13,0.00044408,120]
[404828893,1770603044553,-834.13,0.00044408,120]
[404828894,1770603044563,-834.13,0.00044408,120]
[404828895,1770603044572,-1517.142169,0.00044409,2]
[404828896,1770603044581,-161.79,0.00044409,7]
[404828897,1770603044590,-3342.8050703,0.00044409,2]
[404828898,1770603044599,-679795.4279708,0.00044409,2]
[404828899,1770603044609,-3457.2486756,0.00044409,2]
[404828900,1770603044618,-306.26928104,0.00044409,30]
[404828901,1770603044627,-652.0,0.00044411,120]
[404828902,1770603044637,-307.25781,0.00044411,120]
[404828903,1770603044646,-157.23356401,0.00044412,30]
[404828904,1770603044656,-159.97543737,0.00044412,30]
[404828905,1770603044667,-158.66455728,0.00044412,30]
[404828906,1770603044676,-150.0,0.00044412,30]
[404828907,1770603044685,-167.86370887,0.00044412,30]
[404828908,1770603044695,-159.42397237,0.00044412,30]
[404828909,1770603044705,-158.3142894,0.00044412,30]
[404828910,1770603044716,-157.24984165,0.00044412,30]
[404828911,1770603044726,-150.0,0.00044415,60]
[404828912,1770603044736,-208.89,0.0004442,14]
[404828913,1770603044748,-165.57,0.00044428,14]
[404828914,1770603044757,-208.89,0.00044431,14]
[404828915,1770603044770,-2062.29954184,0.00044433,7]
[404828916,1770603044779,-2062.29954184,0.00044433,7]
[404828917,1770603044789,-165.57,0.00044435,14]
[404828918,1770603044800,-151.0,0.00044439,120]
[404828919,1770603044809,-151.0,0.0004444,120]
[404828920,1770603044820,-1443.88800847,0.0004444,120]
[404828921,1770603044830,-500.0,0.00044442,120]
[404828922,1770603044840,-834.13,0.00044442,120]
[404828923,1770603044849,-834.13,0.00044442,120]
[404828924,1770603044858,-834.13,0.00044442,120]
[404828925,1770603044868,-834.13,0.00044442,120]
[404828926,1770603044877,-834.13,0.00044442,120]
[404828927,1770603044886,-834.13,0.00044442,120]
[404828928,1770603044896,-834.13,0.00044442,120]
[404828929,1770603044905,-834.13,0.00044442,120]
[404828930,1770603044915,-834.13,0.00044442,120]
[404828931,1770603044925,-834.13,0.00044442,120]
[404828932,1770603044935,-834.13,0.00044442,120]
[404828933,1770603044945,-834.13,0.00044442,120]
[404828934,1770603044955,-834.13,0.00044442,120]
[404828935,1770603044964,-834.13,0.00044442,120]
[404828936,1770603044974,-834.27906445,0.00044442,120]
[404828937,1770603044986,-77817.77542888,0.00044442,54]
[404828938,1770603044995,-306.26928104,0.00044443,30]
[404828939,1770603045005,-306.26928104,0.00044443,30]
[404828940,1770603045015,-306.26928104,0.00044443,30]
[404828941,1770603045025,-306.26928104,0.00044443,30]
[404828942,1770603045035,-485578.59400887,0.00044443,10]
[404828943,1770603045118,-72984.9805089,0.00044443,10]
[404828944,1770603045130,-7256.75379404,0.00044443,10]
[404828945,1770603045143,-993.34152341,0.00044443,10]
[404828946,1770603045159,-588.21,0.00044356,120]
[404828947,1770603045168,-4019108.20553927,0.00044443,10]
[404828948,1770603045179,-1219.70994388,0.00044443,10]
[404828949,1770603045220,-3531.35,0.00044443,10]
[404828950,1770603045236,-90264.4699349,0.00044443,10]
[404828951,1770603045249,-433005.34218031,0.00044443,10]
[404828952,1770603045318,-6135.44242119,0.00038542,2]
[404828953,1770603045331,-8323.3767327,0.00038542,2]
[404828954,1770603045342,-1425.2515474,0.00038542,2]
[404828955,1770603045354,-19315.8942785,0.00038542,2]
[404828956,1770603045363,-553.00284193,0.00044356,120]
[404828957,1770603045373,-500.0,0.00044356,120]
[404828958,1770603045382,-2723.11537841,0.00044443,10]
[404828959,1770603045393,-1163.69555954,0.00044443,10]
[404828960,1770603045616,-593.23032978,0.00044443,10]
[404828962,1770603045630,-522.24219962,0.00044443,10]
[404828964,1770603045641,-435.90980677,0.00044443,10]
[404828965,1770603045657,-432.21802615,0.00044443,10]
[404828967,1770603045718,-4592.69195026,0.00044443,10]
[404828968,1770603045730,-1059.5856848,0.00044443,10]
[404828969,1770603045884,-373.96952708,0.00044356,120]
[404828970,1770603045896,-193.12459985,0.00044356,120]
[404828971,1770603045906,-597.9482543,0.00044443,10]
[404828972,1770603045990,-7560.70041411,0.00044443,10]
[404828973,1770603046001,-1236.75000005,0.00044443,10]
[404828974,1770603046011,-2486.13672743,0.00044443,10]
[404828975,1770603046022,-4341.46095644,0.00044443,10]
[404828976,1770603046148,-3275.848593,0.00044443,10]
[404828977,1770603046160,-373717.8597362,0.00044443,10]
[404828978,1770603046205,-17493.75258268,0.00044443,10]
[404828979,1770603046218,-8285.20000007,0.00044443,10]
[404828980,1770603046228,-616.0,0.00044443,10]
[404828982,1770603208738,521.7047,0.00032616,2]
[404828983,1770603553852,166.18,0.0001716,2]
[404828984,1770603569613,509.0,0.00032616,2]
[404828989,1770603911390,-3469.90787531,0.00018,2]
[404828990,1770603914229,-5000.01,0.00018,2]
[404828991,1770603920279,-5000.01,0.00018,2]
[404828992,1770603956066,158.89835651,0.00025,60]
[404828993,1770603964088,-300.0,0.00017999,2]
[404828994,1770604010068,44938.0,0.00035616,30]
[404828995,1770604012161,5000.00385228,0.000162,5]
[404828996,1770604021285,300.0,0.00017998,2]
[404828997,1770604022187,550.0,0.00017998,2]
[404828998,1770604036379,300.0,0.00017998,2]
[404828999,1770604048443,503.82952283,0.00017999,2]
[404829000,1770604050570,3346.17662489,0.00017,2]
[404829001,1770604050592,10000.01,0.00017,2]
[404829002,1770604050614,10000.01,0.00017,2]
[404829003,1770604050634,5000.01,0.00017,2]
[404829004,1770604050653,5000.01,0.00017,2]
[404829005,1770604050672,5000.01,0.00017,2]
[404829006,1770604050692,5000.01,0.00017,2]
[404829007,1770604050712,5000.01,0.00017,2]
[404829008,1770604050732,5000.01,0.00017,2]
[404829009,1770604050755,5000.01,0.00017,2]
[404829010,1770604050776,5000.01,0.00017,2]
[404829011,1770604050795,5000.01,0.00017,2]
[404829012,1770604050816,5000.01,0.00017,2]
[404829013,1770604050841,94382.36803279,0.00017,2]
[404829014,1770604050869,138177.72119419,0.00017,2]
[404829015,1770604050896,148645.12494275,0.00017,2]
[404829016,1770604055553,2436.55069835,0.000179,2]
[404829017,1770604059151,154.50914276,0.00028,120]
[404829019,1770604086773,200.0,0.0001634,2]
[404829020,1770604107971,670.0,0.00017998,2]
[404829021,1770604110291,268.85646745,0.000107,2]
[404829022,1770604110863,1063.54173058,0.00017999,5]
[404829023,1770604110890,178.74851016,0.00017999,5]
[404829024,1770604110924,1063.54173058,0.00017999,5]
[404829025,1770604111023,1063.54173058,0.00017999,5]
[404829026,1770604111073,1063.54173058,0.00017999,5]
[404829027,1770604111132,1063.54173058,0.00017999,5]
[404829029,1770604121219,928.14567114,0.000176,6]
[404829030,1770604121242,2871.85432886,0.000176,6]
[404829031,1770604121899,355.67843471,0.0003488,120]
[404829032,1770604123436,7128.15567114,0.000177,6]
[404829033,1770604123459,571.84432886,0.000177,6]
[404829034,1770604125411,9428.16567114,0.000178,6]
[404829035,1770604125433,2071.83432886,0.000178,6]
[404829036,1770604127496,2928.17567114,0.000179,6]
[404829037,1770604127521,5000.01,0.000179,6]
[404829038,1770604127545,5000.01,0.000179,6]
[404829039,1770604127568,2471.80432886,0.000179,6]
[404829040,1770604131677,2528.20567114,0.000179,2]
[404829041,1770604131698,2646.60754476,0.000179,2]
[404829042,1770604141236,300.0,0.00017998,2]
[404829043,1770604141630,159.84911058,0.000179,2]
[404829044,1770604143610,1893.55334466,0.000179,2]
[404829045,1770604143635,1672.49290754,0.000179,2]
[404829046,1770604152092,2136.93217287,0.000179,2]
[404829047,1770604161879,150.0,0.00017973,2]
[404829048,1770604201262,1040.58491959,0.00017998,2]
[404829049,1770604201284,159.41508041,0.00017998,2]
[404829050,1770604201559,300.0,0.00017998,2]
[404829051,1770604201875,550.0,0.00017998,2]
[404829052,1770604203929,304.0,0.00017999,2]
[404829053,1770604204620,-500.0,0.00017999,2]
[404829054,1770604204653,-500.0,0.00017999,2]
[404829055,1770604204687,-242.35780617,0.00017999,2]
[404829056,1770604204721,-500.0,0.00017999,2]
[404829057,1770604204755,-500.0,0.00017999,2]
[404829058,1770604204784,-285.06194125,0.00017999,2]
[404829059,1770604204816,-500.0,0.00017999,2]
[404829060,1770604204849,-500.0,0.00017999,2]
[404829061,1770604204879,-500.0,0.00017999,2]
[404829062,1770604204915,-500.0,0.00017999,2]
[404829063,1770604204950,-445.17050516,0.00017999,2]
[404829064,1770604205147,-54.82949484,0.00017999,2]
[404829065,1770604205178,-500.0,0.00017999,2]
[404829066,1770604205214,-500.0,0.00017999,2]
[404829067,1770604205249,-500.0,0.00017999,2]
[404829068,1770604205281,-500.0,0.00017999,2]
[404829069,1770604205314,-500.0,0.00017999,2]
[404829070,1770604205346,-500.0,0.00017999,2]
[404829071,1770604205377,-500.0,0.00017999,2]
[404829072,1770604205410,-500.0,0.00017999,2]
[404829073,1770604205446,-500.0,0.00017999,2]
[404829074,1770604205476,-390.35101032,0.00017999,2]
[404829075,1770604205651,-109.64898968,0.00017999,2]
[404829076,1770604205883,-500.0,0.00017999,2]
[404829077,1770604205917,-500.0,0.00017999,2]
[404829078,1770604205950,-500.0,0.00017999,2]
[404829079,1770604205980,-500.0,0.00017999,2]
[404829080,1770604206015,-500.0,0.00017999,2]
[404829081,1770604206055,-500.0,0.00017999,2]
[404829082,1770604206094,-500.0,0.00017999,2]
[404829083,1770604206126,-500.0,0.00017999,2]
[404829084,1770604206161,-500.0,0.00017999,2]
[404829085,1770604206194,-351.55896172,0.00017999,2]
[404829086,1770604206232,-77.5940972,0.00017999,2]
[404829087,1770604206267,-500.0,0.00017999,2]
[404829088,1770604206298,-500.0,0.00017999,2]
[404829089,1770604206330,-313.39548827,0.00017999,2]
[404829090,1770604206367,-500.0,0.00017999,2]
[404829091,1770604206402,-500.0,0.00017999,2]
[404829092,1770604206437,-500.0,0.00017999,2]
[404829093,1770604206472,-500.0,0.00017999,2]
[404829094,1770604206507,-500.0,0.00017999,2]
[404829095,1770604206539,-500.0,0.00017999,2]
[404829096,1770604206572,-500.0,0.00017999,2]
[404829097,1770604206717,-500.0,0.00017999,2]
[404829098,1770604206750,-500.0,0.00017999,2]
[404829099,1770604206780,-500.0,0.00017999,2]
[404829100,1770604206812,-500.0,0.00017999,2]
[404829101,1770604206843,-500.0,0.00017999,2]
[404829102,1770604206873,-500.0,0.00017999,2]
[404829103,1770604206905,-500.0,0.00017999,2]
[404829104,1770604206935,-500.0,0.00017999,2]
[404829105,1770604206969,-500.0,0.00017999,2]
[404829106,1770604206998,-500.0,0.00017999,2]
[404829107,1770604207236,-500.0,0.00017999,2]
[404829108,1770604207264,-500.0,0.00017999,2]
[404829109,1770604207295,-500.0,0.00017999,2]
[404829110,1770604207326,-500.0,0.00017999,2]
[404829111,1770604207356,-500.0,0.00017999,2]
[404829112,1770604207386,-500.0,0.00017999,2]
[404829113,1770604207421,-500.0,0.00017999,2]
[404829114,1770604207457,-500.0,0.00017999,2]
[404829115,1770604207486,-500.0,0.00017999,2]
[404829116,1770604207516,-500.0,0.00017999,2]
[404829117,1770604207690,-500.0,0.00017999,2]
[404829118,1770604207719,-500.0,0.00017999,2]
[404829119,1770604207750,-500.0,0.00017999,2]
[404829120,1770604207779,-500.0,0.00017999,2]
[404829121,1770604207808,-500.0,0.00017999,2]
[404829122,1770604207836,-500.0,0.00017999,2]
[404829123,1770604207867,-500.0,0.00017999,2]
[404829124,1770604207895,-500.0,0.00017999,2]
[404829125,1770604207929,-500.0,0.00017999,2]
[404829126,1770604207958,-238.6860289,0.00017999,2]
[404829127,1770604207988,-22.6379422,0.00017999,2]
[404829128,1770604208034,-477.3620578,0.00017999,2]
[404829129,1770604208075,-500.0,0.00017999,2]
[404829130,1770604208109,-500.0,0.00017999,2]
[404829131,1770604208144,-650.0,0.00017999,2]
[404829132,1770604208180,-500.0,0.00017999,2]
[404829133,1770604208217,-500.0,0.00017999,2]
[404829134,1770604208252,-500.0,0.00017999,2]
[404829135,1770604208287,-354.72771771,0.00017999,2]
[404829136,1770604208321,-237.03401494,0.00017999,2]
[404829137,1770604208354,-518.66847907,0.00017999,2]
[404829138,1770604208386,-196.47250688,0.00017999,2]
[404829139,1770604208474,-351.39004209,0.00017999,2]
[404829140,1770604208508,-500.0,0.00017999,2]
[404829141,1770604208541,-500.0,0.00017999,2]
[404829142,1770604211849,7297.22991582,0.000179,2]
[404829143,1770604211880,10000.01,0.000179,2]
[404829144,1770604211904,10000.01,0.000179,2]
[404829145,1770604211927,5652.01655572,0.000179,2]
[404829152,1770604231960,-250.0,0.00018,2]
[404829154,1770604231970,-195.0,0.00018,2]
[404829156,1770604231980,-13024.63399765,0.00018,2]
[404829157,1770604231991,-547.34,0.00018,2]
[404829206,1770604238075,-443.21634454,0.00018,2]
[404829207,1770604238130,-992017.43389022,0.00018,2]
[404829208,1770604238140,-2516306.7545707,0.00018,2]
[404829209,1770604238150,-182.06,0.00018,2]
[404829210,1770604238159,-1781.49378135,0.000181,2]
[404829211,1770604238169,-240.32709851,0.00018129,2]
[404829212,1770604238179,-250.0,0.00018521,2]
[404829213,1770604238188,-198.93640224,0.00018521,2]
[404829214,1770604238197,-1145.84487387,0.00019,2]
[404829215,1770604238209,-935.0,0.00019078,2]
[404829216,1770604238218,-200.23286085,0.00019082,2]
[404829217,1770604238228,-240.32709851,0.00019398,2]
[404829218,1770604238239,-407.0,0.00019638,2]
[404829219,1770604238249,-1680.0,0.00019734,2]
[404829220,1770604238259,-250.0,0.00019799,2]
[404829221,1770604238268,-195.0,0.00019799,2]
[404829222,1770604238278,-4930.70056391,0.000199,3]
[404829223,1770604238288,-50011.85706841,0.0001999,2]
[404829225,1770604238298,-32949.26647146,0.00020067,2]
[404829227,1770604238308,-917.0,0.0002023,2]
[404829229,1770604238317,-240.32709851,0.00020667,2]
[404829231,1770604238326,-48810.72458322,0.00021,2]
[404829233,1770604238336,-9758.95,0.00021057,2]
[404829235,1770604238345,-159.84911056,0.0002115,2]
[404829237,1770604238354,-2351.0,0.00021638,2]
[404829239,1770604238364,-3566.04625219,0.00021677,2]
[404829241,1770604238373,-286.91744493,0.00021918,2]
[404829243,1770604238382,-240.32709851,0.00021935,2]
[404829245,1770604238392,-8109.24,0.00022,2]
[404829247,1770604238401,-32949.26647146,0.00022233,2]
[404829249,1770604238411,-250.0,0.00022446,2]
[404829251,1770604238422,-240.32709851,0.00023204,2]
[404829253,1770604238436,-3292.0,0.00023726,2]
[404829255,1770604238445,-176691.92163685,0.000241,2]
[404829257,1770604238455,-159.84911056,0.000244,2]
[404829259,1770604238465,-32949.26647146,0.000244,2]
[404829261,1770604238474,-240.32709851,0.00024473,2]
[404829263,1770604238483,-3566.04625219,0.00025455,2]
[404829266,1770604238492,-240.32709851,0.00025742,2]
[404829267,1770604238503,-4318.0,0.00026015,2]
[404829270,1770604238512,-32949.26647146,0.00026567,2]
[404829272,1770604238522,-240.32709851,0.00027011,2]
[404829274,1770604238532,-159.84911056,0.0002765,2]
[404829276,1770604238541,-285.67,0.00027821,2]
[404829278,1770604238550,-240.32709851,0.00028279,2]
[404829280,1770604238560,-32949.26647146,0.00028733,2]
[404829282,1770604238569,-3566.04625219,0.00029232,2]
[404829284,1770604238579,-240.32709851,0.00029548,2]
[404829286,1770604238588,-507.13646079,0.0003013,2]
[404829288,1770604238598,-240.32709851,0.00030817,2]
[404829290,1770604238607,-159.84911056,0.000309,2]
[404829292,1770604238616,-2136.93217286,0.00031121,2]
[404829294,1770604238625,-1479.11165976,0.0003121,2]
[404829296,1770604238635,-4451.1065,0.00031534,10]
[404829298,1770604238644,-200.0,0.00031571,2]
[404829299,1770604238653,-2213.49,0.00031755,2]
[404829302,1770604238663,-8109.24,0.000318,2]
[404829304,1770604238672,-240.32709851,0.00032086,2]
[404829306,1770604238682,-509.0,0.00032616,2]
[404829307,1770604238691,-509.0,0.00032616,2]
[404829309,1770604238701,-3566.04625219,0.00033009,2]
[404829311,1770604238711,-240.32709851,0.00033355,2]
[404829313,1770604238721,-194.61,0.000334,14]
[404829315,1770604238730,-626.3,0.000334,2]
[404829317,1770604238741,-1222.52,0.00033772,2]
[404829319,1770604238750,-159.84911056,0.0003415,2]
[404829321,1770604238761,-240.32709851,0.00034623,2]
[404829323,1770604238770,-678.48627921,0.0003561,2]
[404829324,1770604238779,-361.34331526,0.00035616,7]
[404829325,1770604238789,-240.32709851,0.00035892,2]
[404829326,1770604238799,-166.66,0.00036082,30]
[404829327,1770604238808,-223.12649593,0.00036224,7]
[404829328,1770604238817,-217.1067254,0.000363,2]
[404829329,1770604238827,-500.0,0.00036343,2]
[404829330,1770604238836,-5371.0,0.000364,5]
[404829331,1770604238846,-154.75,0.00036458,2]
[404829332,1770604238855,-163.3172,0.00036512,30]
[404829333,1770604238865,-160.0,0.00036517,2]
[404829334,1770604238875,-2472.5,0.00036612,2]
[404829335,1770604238884,-1288.17,0.00036619,120]
[404829336,1770604238895,-174.59,0.00036643,120]
[404829337,1770604238905,-4201.55,0.00036691,2]
[404829338,1770604238915,-3566.04625219,0.00036786,2]
[404829339,1770604238925,-249.58,0.000368,2]
[404829340,1770604238936,-19200.0,0.000368,13]
[404829341,1770604238946,-166.66,0.00036842,30]
[404829342,1770604238957,-9999.99,0.00036854,2]
[404829343,1770604238967,-439.35,0.00036854,2]
[404829344,1770604238977,-999.99,0.00036854,2]
[404829345,1770604238986,-9999.99,0.00036854,2]
[404829346,1770604238996,-3800.0,0.000369,13]
[404829347,1770604239008,-8109.24,0.000369,2]
[404829348,1770604239018,-240.32709851,0.00037161,2]
[404829349,1770604239028,-4937.77,0.00037181,2]
[404829350,1770604239038,-150.99,0.00037181,2]
[404829351,1770604239048,-353.55,0.00037252,2]
[404829352,1770604239058,-353.55,0.00037321,2]
[404829353,1770604239068,-353.55,0.00037389,2]
[404829354,1770604239078,-159.84911056,0.000374,2]
[404829355,1770604239089,-353.55,0.00037458,2]
[404829356,1770604239099,-151.0,0.00037463,14]
[404829357,1770604239110,-151.0,0.00037463,14]
[404829358,1770604239120,-151.0,0.00037463,14]
[404829359,1770604239129,-1063.54173058,0.00037465,30]
[404829360,1770604239139,-1063.54173059,0.00037465,30]
[404829361,1770604239149,-1063.54173058,0.00037465,30]
[404829362,1770604239159,-300.0,0.00037465,10]
[404829363,1770604239169,-666.0,0.00037465,30]
[404829364,1770604239178,-626.3,0.000375,2]
[404829365,1770604239188,-353.55,0.00037527,2]
[404829366,1770604239198,-7066.5094,0.00037566,2]
[404829367,1770604239208,-2500.0,0.00037566,2]
[404829368,1770604239218,-2150.209,0.00037595,49]
[404829369,1770604239227,-182.368,0.00037595,49]
[404829370,1770604239237,-353.55,0.00037595,2]
[404829371,1770604239247,-166.66,0.00037602,30]
[404829372,1770604239256,-151.0,0.00037643,2]
[404829373,1770604239269,-151.0,0.00037643,2]
[404829374,1770604239281,-151.0,0.00037643,2]
[404829375,1770604239291,-151.0,0.00037643,2]
[404829376,1770604239301,-151.0,0.00037643,2]
[404829377,1770604239310,-151.0,0.00037643,2]
[404829378,1770604239319,-167.67986194,0.00037643,2]
[404829379,1770604239330,-353.55,0.00037664,2]
[404829380,1770604239340,-843.95,0.00037665,14]
[404829381,1770604239359,-353.55,0.00037732,2]
[404829382,1770604239369,-353.55,0.00037801,2]
[404829383,1770604239380,-353.55,0.0003787,2]
[404829384,1770604239389,-353.55,0.00037938,2]
[404829385,1770604239614,-843.95,0.00037939,14]
[404829386,1770604239624,-2831.16,0.00037946,2]
[404829387,1770604239635,-616.84,0.00037982,2]
[404829388,1770604239645,-164.7,0.00038,30]
[404829389,1770604239656,-353.55,0.00038007,2]
[404829390,1770604239667,-353.55,0.00038076,2]
[404829391,1770604239678,-353.55,0.00038144,2]
[404829392,1770604239687,-353.55,0.00038213,2]
[404829393,1770604239697,-843.95,0.00038213,14]
[404829394,1770604239707,-353.55,0.00038281,2]
[404829395,1770604239716,-353.55,0.0003835,2]
[404829396,1770604239726,-166.66,0.00038361,30]
[404829397,1770604239735,-353.55,0.00038419,2]
[404829398,1770604239744,-240.32709851,0.0003843,2]
[404829399,1770604239754,-843.95,0.00038487,30]
[404829400,1770604239764,-353.55,0.00038487,2]
[404829401,1770604239773,-353.55,0.00038556,2]
[404829402,1770604239788,-227.45,0.00038618,2]
[404829403,1770604239799,-8109.24,0.000387,2]
[404829404,1770604239808,-843.95,0.00038761,30]
[404829405,1770604239817,-226.15,0.00038763,2]
[404829406,1770604239826,-150.0,0.00039,120]
[404829407,1770604239836,-1295.73873761,0.00039,120]
[404829408,1770604239845,-626.3,0.00039,30]
[404829409,1770604239855,-843.95,0.00039035,30]
[404829410,1770604239866,-166.66,0.00039121,30]
[404829411,1770604239875,-15663.13,0.00039255,2]
[404829412,1770604239884,-843.95,0.00039309,30]
[404829413,1770604239894,-154.75,0.00039496,2]
[404829414,1770604239906,-843.98268303,0.00039583,30]
[404829415,1770604239916,-240.32709851,0.00039699,2]
[404829417,1770604239925,-616.84,0.00039881,2]
[404829418,1770604239935,-166.66,0.00039881,30]
[404829419,1770604239945,-285.67,0.00039909,14]
[404829420,1770604239955,-505.23042073,0.00039988,2]
[404829421,1770604239966,-501.57237037,0.0004,5]
[404829422,1770604239976,-502.21876737,0.0004,5]
[404829423,1770604239986,-500.0,0.0004,5]
[404829424,1770604239996,-203.48,0.0004,120]
[404829425,1770604240005,-274.5,0.0004,120]
[404829426,1770604240015,-550.24,0.0004,120]
[404829427,1770604240024,-5000.0,0.0004,3]
[404829428,1770604240034,-150.63279502,0.0004,30]
[404829429,1770604240043,-152.0,0.0004,120]
[404829431,1770604240054,-500.0,0.0004,3]
[404829432,1770604240063,-500.0,0.0004,5]
[404829433,1770604240072,-500.0,0.0004,5]
[404829434,1770604240082,-500.0,0.0004,5]
[404829435,1770604240091,-419.83400538,0.0004,5]
[404829436,1770604240101,-207.87433626,0.0004,5]
[404829437,1770604240111,-501.70404248,0.0004,5]
[404829438,1770604240120,-505.07397647,0.0004,5]
[404829439,1770604240129,-500.0,0.0004,5]
[404829440,1770604240139,-500.0,0.0004,5]
[404829441,1770604240148,-500.0,0.0004,5]
[404829442,1770604240157,-500.0,0.0004,5]
[404829443,1770604240166,-502.1679892,0.0004,5]
[404829444,1770604240175,-226.15,0.00040132,2]
[404829445,1770604240184,-158.37193833,0.00040548,3]
[404829446,1770604240194,-1000.0,0.00040548,5]
[404829447,1770604240203,-500.0,0.00040548,5]
[404829448,1770604240212,-1002.18652786,0.00040548,5]
[404829449,1770604240222,-313.52133949,0.00040548,5]
[404829450,1770604240231,-1000.0,0.00040548,5]
[404829451,1770604240241,-513.06059605,0.00040548,5]
[404829452,1770604240250,-300.0,0.00040548,2]
[404829453,1770604240259,-3566.04625219,0.00040564,28]
[404829454,1770604240269,-155.18520585,0.00040937,3]
[404829455,1770604240279,-5000.0,0.00040946,120]
[404829456,1770604240288,-168.0,0.00040955,2]
[404829457,1770604240298,-240.32709851,0.00040967,2]
[404829458,1770604240307,-567.032031,0.00041,30]
[404829459,1770604240321,-152.0,0.00041,120]
[404829460,1770604240331,-560.5349,0.0004102,2]
[404829461,1770604240340,-1000.0,0.0004102,2]
[404829462,1770604240349,-239.38,0.00041096,120]
[404829463,1770604240359,-234.34,0.00041096,120]
[404829464,1770604240368,-1500.0,0.00041096,10]
[404829465,1770604240378,-1500.0,0.00041096,10]
[404829466,1770604240387,-1288.17,0.00041196,120]
[404829467,1770604240397,-6627.20845627,0.000412,2]
[404829468,1770604240407,-1852.42,0.00041254,2]
[404829469,1770604240417,-626.3,0.000413,30]
[404829470,1770604240429,-1427.94767248,0.00041644,10]
[404829471,1770604240439,-1005.72361752,0.00041644,10]
[404829472,1770604240452,-3485.0,0.00041648,2]
[404829473,1770604240463,-618.857,0.00041648,2]
[404829474,1770604240474,-168.0,0.00041677,2]
[404829475,1770604240485,-500.0,0.00041764,120]
[404829476,1770604240495,-500.0,0.00041764,30]
[404829477,1770604240505,-616.84,0.0004178,2]
[404829478,1770604240517,-323.26075896,0.00041951,2]
[404829479,1770604240527,-151.38916921,0.00042,30]
[404829480,1770604240538,-152.0,0.00042,120]
[404829481,1770604240548,-285.67,0.00042175,14]